bitfinex/quotes_ETHUSD_20250821
["timestamp","ask_amount","ask_price","bid_price","bid_amount"]
[1755810871532,0.7586,4252.2,4252.1,0.21765674]
[1755810871902,5.0766,4252.2,4252.1,0.21765674]
[1755810873332,5.76516,4252.2,4252.1,0.21765674]
[1755810873531,5.30756,4252.2,4252.1,0.21765674]
[1755810873709,5.76016,4252.2,4252.1,0.21765674]
[1755810874126,5.76016,4252.2,4252.1,0.21757528]
[1755810874523,5.76016,4252.2,4251.8,0.02]
[1755810874722,1.209516,4252.1,4251.8,0.02]
[1755810874927,0.306,4251.9,4251.8,0.02]
[1755810875297,0.7586,4251.9,4251.8,0.02]
[1755810875735,5.0706,4251.9,4251.8,0.02]
[1755810876738,5.0696,4251.9,4251.8,0.02]
[1755810876906,6.2865076,4251.9,4251.8,0.02]
[1755810877304,2.35063358,4254.2,4251.8,0.02]
[1755810877305,5.655,4253.8,4251.8,0.3083]
[1755810877517,1.809,4253.7,4251.9,0.48661889]
[1755810877716,1.809,4253.6,4252.2,0.66]
[1755810877944,5.677,4254.8,4252.1,3.0]
[1755810877945,6.123,4253.8,4253.7,2.35089451]
[1755810878101,1.809,4254.3,4253.9,2.35078349]
[1755810878304,4.319,4254.2,4253.7,0.4538]
[1755810878502,4.319,4254.2,4253.8,3.0]
[1755810878736,4.319,4254.2,4253.8,5.3508285]
[1755810878937,4.319,4254.2,4254.0,2.35072586]
[1755810879102,4.319,4254.2,4254.0,2.35068908]
[1755810879302,4.319,4254.2,4253.8,5.35081601]
[1755810879303,4.319,4254.2,4253.9,2.35078344]
[1755810879544,4.319,4254.2,4253.9,5.35078344]
[1755810879748,4.319,4254.2,4253.9,2.35078344]
[1755810880037,4.319,4254.2,4253.1,0.4538]
[1755810880243,4.9318,4254.2,4253.2,3.0]
[1755810880649,4.9318,4254.2,4253.2,5.35117088]
[1755810880852,4.9318,4254.2,4253.7,2.35084807]
[1755810881042,4.9318,4254.2,4253.9,5.35073869]
[1755810881043,4.319,4254.2,4253.9,5.35073869]
[1755810881236,4.319,4254.2,4253.0,2.35126929]
[1755810881237,0.3054,4254.0,4251.9,0.4631]
[1755810881441,0.3054,4254.0,4251.9,0.4538]
[1755810881442,0.4677,4253.9,4251.9,0.4538]
[1755810881647,0.4677,4253.9,4252.2,2.3517138]
[1755810881808,0.4677,4253.9,4252.0,3.0]
[1755810882155,0.47777,4253.8,4253.0,2.35127352]
[1755810882306,4.31,4253.8,4252.7,0.4538]
[1755810883453,4.31,4253.8,4252.4,3.0]
[1755810883454,0.3054,4252.8,4251.9,0.17473651]
[1755810883753,6.119,4252.7,4251.4,0.4538]
[1755810883935,6.119,4252.7,4251.2,0.001]
[1755810883936,1.11014,4252.6,4251.2,0.001]
[1755810884855,0.3054,4251.9,4251.2,0.001]
[1755810885039,6.116,4251.9,4251.6,0.001]
[1755810885350,6.113,4251.9,4251.6,0.001]
[1755810886529,6.113,4251.9,4251.8,0.23758273]
[1755810887127,6.113,4251.9,4251.8,0.02]
[1755810887357,1.809,4251.9,4251.8,0.02]
[1755810887515,6.109,4251.9,4251.8,0.02]
[1755810888485,1.809,4251.9,4251.8,0.02]
[1755810888624,6.107,4251.9,4251.8,3.7679]
[1755810890414,1.809,4251.9,4251.8,3.7679]
[1755810890649,6.107,4251.9,4251.8,3.7679]
[1755810891653,1.809,4252.5,4251.9,3.0]
[1755810891819,1.809,4252.5,4252.4,0.2941]
[1755810892018,6.097,4252.5,4252.4,0.2941]
[1755810892329,1.809,4252.5,4252.4,0.7479]
[1755810892670,6.096,4252.5,4252.4,0.2941]
[1755810892820,6.096,4252.5,4252.4,3.2941]
[1755810893023,6.096,4252.5,4252.4,0.2941]
[1755810893656,6.096,4252.5,4251.8,0.02]
[1755810894014,6.096,4252.5,4252.0,2.35179923]
[1755810894015,4.283,4252.4,4252.0,2.35179923]
[1755810894249,4.283,4252.4,4252.1,2.35177047]
[1755810894438,4.283,4252.4,4252.1,3.0]
[1755810894639,4.283,4252.4,4251.8,2.37193989]
[1755810894949,4.283,4252.4,4251.8,0.02]
[1755810895152,4.61278159,4252.4,4251.8,0.02]
[1755810895357,0.3054,4251.9,4251.8,0.02]
[1755810895656,4.5884,4251.9,4251.8,0.02]
[1755810896021,5.0561,4251.9,4251.8,0.02]
[1755810897850,0.7731,4251.9,4251.8,0.02]
[1755810898035,5.69391,4251.9,4251.8,0.02]
[1755810900269,1.41591,4251.9,4251.8,0.02]
[1755810900426,5.69391,4251.9,4251.8,0.02]
[1755810900625,35.69391,4251.9,4251.8,0.02]
[1755810900846,1.41591,4251.9,4251.8,0.02]
[1755810901128,36.34991,4251.9,4251.8,0.02]
[1755810901667,49.94511172,4251.9,4251.8,0.02]
[1755810901958,1.41591,4251.9,4251.8,0.02]
[1755810902130,5.68691,4251.9,4251.8,0.02]
[1755810902665,5.68791,4251.9,4251.8,0.021]
[1755810903945,5.68691,4251.9,4251.8,0.021]
[1755810904628,6.34691,4251.9,4251.8,0.021]
[1755810904838,36.34691,4251.9,4251.8,0.021]
[1755810905355,0.66,4251.7,4251.6,0.001]
[1755810905527,39.40253963,4251.7,4251.6,0.001]
[1755810905736,0.66,4251.5,4250.9,0.001]
[1755810905936,0.66,4251.1,4250.9,0.001]
[1755810906139,35.2294,4251.0,4250.9,0.001]
[1755810906334,35.6971,4251.0,4250.9,0.001]
[1755810906552,38.05923963,4251.0,4250.9,0.001]
[1755810906752,0.66,4250.7,4250.5,0.001]
[1755810906953,50.63560172,4250.6,4250.5,0.001]
[1755810907160,61.71830172,4250.6,4250.5,0.001]
[1755810907384,0.7731,4250.6,4250.5,0.001]
[1755810907544,6.8471,4250.6,4250.5,0.001]
[1755810907858,6.76471,4250.6,4250.5,0.001]
[1755810908257,7.07751,4250.6,4250.5,0.001]
[1755810908468,6.76871,4250.6,4250.5,0.001]
[1755810908838,7.08151,4250.6,4250.5,0.001]
[1755810909264,8.20991,4250.6,4250.5,0.001]
[1755810909469,38.20991,4250.6,4250.5,0.001]
[1755810910372,2.80751,4250.6,4250.5,0.001]
[1755810910588,6.086,4250.6,4250.5,0.2943]
[1755810910737,6.3988,4250.6,4250.0,0.001]
[1755810910938,6.8672,4250.6,4250.0,0.001]
[1755810911162,0.68672,4250.5,4250.0,0.001]
[1755810911469,0.3128,4250.1,4250.0,0.001]
[1755810911671,5.2488,4250.1,4250.0,0.001]
[1755810911888,5.7172,4250.1,4250.0,0.001]
[1755810912166,5.0572,4250.1,4250.0,0.001]
[1755810912355,7.41933963,4250.1,4250.0,0.001]
[1755810912869,2.67493963,4250.1,4250.0,0.001]
[1755810913188,6.63513963,4250.1,4250.0,0.001]
[1755810913561,2.36213963,4250.1,4250.0,0.001]
[1755810913757,6.94593963,4250.1,4250.0,0.001]
[1755810917246,7.41433963,4250.1,4250.0,0.001]
[1755810917451,38.07433963,4250.1,4250.0,0.001]
[1755810917655,38.07433963,4250.1,4248.8,0.02]
[1755810917656,0.66,4250.0,4248.8,0.02]
[1755810917863,0.9728,4249.7,4248.8,0.02]
[1755810918086,37.0488,4249.7,4248.8,0.02]
[1755810918298,37.5172,4249.7,4248.8,0.02]
[1755810918459,6.075,4249.7,4248.8,0.02]
[1755810919063,21.11140172,4249.7,4248.8,0.02]
[1755810919263,21.11140172,4249.7,4249.5,0.001]
[1755810919264,23.22154189,4249.7,4249.5,0.001]
[1755810919767,22.75314189,4249.7,4249.5,0.001]
[1755810920273,25.23414189,4249.7,4249.5,0.001]
[1755810920478,22.75314189,4249.7,4249.5,0.001]
[1755810921289,23.22154189,4249.7,4249.5,0.001]
[1755810921472,22.74714189,4249.7,4249.5,0.001]
[1755810921666,18.49014189,4249.7,4249.5,0.001]
[1755810921872,22.74614189,4249.7,4249.5,0.001]
[1755810922089,9.15094017,4249.7,4249.5,0.001]
[1755810922295,7.0398,4249.7,4249.5,0.001]
[1755810925763,2.7838,4249.7,4249.5,0.001]
[1755810926001,7.0278,4249.7,4249.5,0.001]
[1755810926501,7.4962,4249.7,4249.5,0.001]
[1755810926858,2.36213963,4250.1,4249.5,0.001]
[1755810927080,5.658,4250.4,4249.6,0.7481]
[1755810927081,6.052,4250.0,4249.6,0.7481]
[1755810927292,4.243,4249.9,4249.6,0.2943]
[1755810927886,4.243,4249.9,4249.6,0.7481]
[1755810928182,4.243,4249.8,4249.7,0.4538]
[1755810928384,4.243,4249.8,4249.7,0.7471]
[1755810928699,1.811,4250.0,4249.7,0.7471]
[1755810928886,4.24,4249.9,4249.8,0.4538]
[1755810929083,4.24,4249.9,4249.8,0.2933]
[1755810929595,4.24,4249.9,4249.8,0.7471]
[1755810929972,1.811,4250.0,4249.8,0.7471]
[1755810930178,4.236,4249.9,4249.8,0.2933]
[1755810930686,4.236,4249.9,4249.8,0.7471]
[1755810931587,1.811,4250.0,4249.8,0.7471]
[1755810931925,1.811,4250.0,4249.8,0.2933]
[1755810931926,4.235,4249.9,4249.8,0.2933]
[1755810932197,6.042,4249.9,4249.8,0.2933]
[1755810932493,6.042,4249.9,4249.8,0.7471]
[1755810932898,1.811,4250.1,4249.8,0.7471]
[1755810933102,6.039,4250.0,4249.9,0.4538]
[1755810933315,6.04,4250.0,4249.9,3.7471]
[1755810933469,1.811,4250.0,4249.9,6.10009654]
[1755810933804,6.039,4250.0,4249.9,3.7471]
[1755810935597,6.039,4250.0,4249.9,6.10009654]
[1755810935799,6.039,4250.0,4249.9,3.7471]
[1755810936265,1.811,4250.0,4249.9,6.10009654]
[1755810936469,6.032,4250.0,4249.9,3.7471]
[1755810936771,6.032,4250.0,4249.9,6.10009654]
[1755810937403,0.02,4250.8,4250.1,0.66]
[1755810937609,0.02,4250.8,4250.7,0.2933]
[1755810937901,4.243,4250.8,4250.7,0.2933]
[1755810938077,4.243,4250.8,4250.7,0.7335]
[1755810939498,4.239,4250.8,4250.7,0.7335]
[1755810940612,4.237,4250.8,4250.7,0.7335]
[1755810940819,0.02,4250.8,4250.7,6.08605369]
[1755810941017,4.237,4250.8,4250.7,6.92992348]
[1755810941174,0.02,4250.8,4250.7,6.08605369]
[1755810945517,0.02,4250.8,4250.7,6.74605369]
[1755810945717,0.002,4251.0,4250.9,3.01244301]
[1755810946024,0.002,4251.0,4250.9,6.34716744]
[1755810946194,0.002,4251.0,4250.9,6.76384301]
[1755810946401,0.002,4251.0,4250.9,9.12598264]
[1755810946721,0.02,4251.8,4251.7,2.35200037]
[1755810946890,0.02,4251.8,4251.7,5.68672037]
[1755810947231,0.02,4251.8,4251.7,6.10340037]
[1755810948302,0.02,4251.8,4251.7,6.76340037]
[1755810948500,0.02,4251.8,4251.7,7.67026717]
[1755810952411,0.02,4251.8,4251.7,3.17862525]
[1755810952612,0.02,4251.8,4251.7,5.53062562]
[1755810953012,0.02,4251.8,4251.7,6.98904362]
[1755810953232,0.02,4251.8,4251.7,6.28202562]
[1755810955010,0.02,4251.8,4251.7,5.53062562]
[1755810955203,0.02,4251.8,4251.7,5.84182562]
[1755810956835,0.3129,4251.8,4251.7,5.53062562]
[1755810957343,6.7749,4251.8,4251.7,0.17862525]
[1755810957538,7.45259,4251.8,4250.5,0.001]
[1755810957725,0.459,4251.7,4250.5,2.35366401]
[1755810957926,0.2929,4250.6,4250.5,0.001]
[1755810959319,0.7519,4250.6,4250.5,0.001]
[1755810959948,4.9429,4250.6,4250.5,0.001]
[1755810960447,5.43719,4250.6,4250.5,0.001]
[1755810961749,5.43419,4250.6,4250.5,0.001]
[1755810962456,5.43319,4250.6,4250.5,0.001]
[1755810964855,5.43519,4250.6,4250.5,0.001]
[1755810965148,1.24619,4250.6,4250.5,0.001]
[1755810965447,0.7519,4250.6,4250.5,0.001]
[1755810965654,4.9369,4250.6,4250.5,0.001]
[1755810966362,5.5969,4250.6,4250.5,0.001]
[1755810966943,35.5969,4250.6,4250.5,0.001]
[1755810967347,0.50666557,4251.6,4250.5,0.3122]
[1755810967532,0.002,4251.9,4250.5,0.3122]
[1755810967533,0.002,4251.0,4250.9,2.35244301]
[1755810967878,0.002,4251.0,4250.9,6.91906268]
[1755810969023,0.002,4251.0,4250.9,7.57906268]
[1755810969366,0.002,4251.0,4250.9,6.91906268]
[1755810969551,0.002,4251.0,4250.9,7.57906268]
[1755810970440,0.02,4251.8,4251.7,2.35200037]
[1755810970625,0.02,4251.8,4251.7,6.81102839]
[1755810970823,0.02,4251.8,4251.7,7.22840839]
[1755810971774,1e-08,4251.8,4251.7,7.22840839]
[1755810972129,1e-08,4251.8,4251.7,6.56840839]
[1755810972325,1e-08,4251.8,4251.7,5.65710037]
[1755810972558,1e-08,4251.8,4251.7,3.0]
[1755810972559,0.31280001,4251.8,4251.7,3.0]
[1755810972732,0.31280001,4251.8,4250.5,0.001]
[1755810972733,0.77000001,4251.8,4250.5,0.001]
[1755810973132,4.6732,4251.7,4250.5,0.001]
[1755810973822,0.4572,4251.6,4250.5,0.001]
[1755810974026,0.46732,4251.5,4250.5,0.001]
[1755810974223,1.81,4251.4,4250.5,0.001]
[1755810974429,2.2672,4251.4,4250.5,0.001]
[1755810975258,4.214,4251.3,4250.5,0.001]
[1755810975771,4.214,4251.3,4250.6,2.35259746]
[1755810976268,0.3128,4250.7,4250.5,0.001]
[1755810976459,6.019,4250.6,4250.5,0.001]
[1755810976658,6.789,4250.6,4250.5,0.001]
[1755810978260,1.81,4250.6,4250.5,0.3061]
[1755810978465,1.81,4250.6,4250.5,3.3061]
[1755810978793,1.81,4250.6,4250.5,5.98937439]
[1755810978954,4.205,4251.4,4250.5,0.33161]
[1755810979154,0.4572,4251.3,4250.5,0.001]
[1755810979393,0.4572,4251.3,4250.5,2.35365598]
[1755810980163,0.4572,4251.3,4250.5,0.001]
[1755810980369,0.3128,4250.6,4250.5,0.001]
[1755810980698,2.1228,4250.6,4250.5,0.001]
[1755810980878,2.58,4250.6,4250.5,0.001]
[1755810981193,1.81,4250.6,4250.5,0.001]
[1755810981363,6.011,4250.6,4250.5,0.001]
[1755810982391,1.81,4250.6,4250.5,0.3061]
[1755810982580,1.81,4250.6,4250.5,3.3061]
[1755810982781,1.81,4250.6,4250.5,3.001]
[1755810982977,2.1228,4250.6,4250.5,3.001]
[1755810983555,2.58,4250.6,4250.5,3.001]
[1755810984763,2.1228,4250.6,4250.5,3.001]
[1755810984959,1.81,4250.6,4250.5,3.001]
[1755810985158,6.008,4250.6,4250.5,3.001]
[1755810985374,6.3208,4250.6,4250.5,3.001]
[1755810985999,6.008,4250.6,4250.5,3.001]
[1755810986705,1.81,4250.6,4250.5,3.001]
[1755810987003,6.006,4250.6,4250.5,3.001]
[1755810987788,1.81,4250.6,4250.5,5.65876439]
[1755810987989,4.197,4251.0,4250.7,2.35255369]
[1755810988195,1.81,4251.3,4251.0,2.35237953]
[1755810988500,0.3128,4251.1,4250.6,2.35260822]
[1755810988894,0.3128,4251.1,4250.5,0.001]
[1755810988895,4.197,4251.2,4250.7,2.35254919]
[1755810989958,4.197,4251.2,4250.5,0.001]
[1755810990174,4.197,4251.2,4250.9,2.35243925]
[1755810990381,4.197,4251.2,4250.5,0.001]
[1755810990382,0.3128,4251.0,4250.5,0.001]
[1755810990887,0.4572,4250.9,4250.5,0.001]
[1755810991204,0.3128,4250.6,4250.5,0.001]
[1755810991511,4.5028,4250.6,4250.5,0.001]
[1755810991672,5.456,4250.6,4250.5,0.001]
[1755810994594,6.116,4250.6,4250.5,0.001]
[1755810995505,11.774,4250.6,4250.5,0.001]
[1755810996196,11.99368865,4250.6,4250.5,0.001]
[1755810996763,12.11356855,4250.6,4250.5,0.001]
[1755810996964,12.11356855,4250.6,4249.8,0.02]
[1755810996965,0.66,4250.5,4249.8,0.02]
[1755810997175,13.91659115,4249.9,4249.8,0.02]
[1755810997417,1.66855686,4250.5,4249.8,0.02]
[1755810997418,1.21135686,4250.5,4249.8,0.02]
[1755810997712,1.81,4250.4,4249.8,0.766]
[1755810997916,1.81,4251.1,4249.9,0.4702]
[1755810998078,4.198,4251.0,4249.9,0.49372996]
[1755810998282,4.198,4251.0,4250.9,5.63944301]
[1755810998481,0.002,4251.9,4251.0,3.0]
[1755810998482,4.2,4251.3,4251.0,3.0]
[1755810998691,4.2,4251.3,4251.2,5.639277]
[1755810998912,4.2,4251.3,4251.2,0.287]
[1755810999580,0.66,4251.2,4249.8,0.02]
[1755810999915,4.203,4251.1,4249.8,0.02]
[1755811000114,1.81,4251.0,4249.8,0.02]
[1755811000419,1.81,4251.0,4249.9,0.4702]
[1755811000716,4.204,4250.9,4250.5,2.35265291]
[1755811000927,4.204,4250.9,4250.8,0.287]
[1755811001080,4.204,4250.9,4250.8,3.287]
[1755811001724,4.204,4250.9,4250.8,6.10969835]
[1755811002017,4.202,4250.9,4250.8,0.287]
[1755811002182,4.8032,4250.9,4250.2,0.4702]
[1755811002381,4.202,4250.9,4250.2,0.4702]
[1755811002590,4.202,4250.9,4249.8,2.37400364]
[1755811002790,4.202,4250.9,4249.8,0.021]
[1755811002994,4.202,4250.9,4249.9,2.35299531]
[1755811003210,4.202,4250.9,4250.0,2.35293315]
[1755811003385,1.81,4251.0,4249.8,0.021]
[1755811003587,4.198,4250.9,4250.2,3.0]
[1755811004485,4.198,4250.9,4250.2,5.35282608]
[1755811005398,4.198,4250.9,4250.2,3.0]
[1755811006106,4.198,4250.9,4249.8,0.021]
[1755811006406,4.84426,4250.9,4249.9,2.35299011]
[1755811006609,4.84426,4250.9,4250.1,2.35286947]
[1755811006827,1.81,4251.0,4250.2,2.35282683]
[1755811007034,1.81,4251.0,4250.9,5.35244301]
[1755811007187,1.81,4251.0,4250.9,2.63944301]
[1755811007387,1.81,4251.0,4250.9,6.10964301]
[1755811008495,1.81,4251.6,4251.0,3.0]
[1755811008700,5.999,4251.6,4251.2,3.0]
[1755811008884,5.999,4251.6,4251.2,2.3522441]
[1755811009089,5.999,4251.6,4251.2,2.8224441]
[1755811009316,5.999,4251.6,4251.2,3.4702]
[1755811009495,5.999,4251.6,4251.2,2.82245479]
[1755811009815,5.999,4251.6,4251.1,0.37572]
[1755811009816,5.999,4251.6,4251.5,0.287]
[1755811010121,5.999,4251.6,4251.5,6.10931101]
[1755811010620,6.0,4251.6,4251.5,3.0]
[1755811011007,6.0,4251.6,4251.5,3.287]
[1755811011210,6.0,4251.6,4251.5,6.10931101]
[1755811011599,4.19,4251.6,4251.5,6.10931101]
[1755811012832,4.9313,4251.6,4251.5,3.0]
[1755811013142,5.42483,4251.6,4249.9,0.707473]
[1755811013342,5.42483,4251.6,4249.8,0.021]
[1755811013343,2.2646,4251.5,4250.2,2.35282413]
[1755811013537,2.2646,4251.5,4249.8,3.021]
[1755811013538,1.81,4251.5,4250.1,0.4702]
[1755811013738,1.81,4251.5,4249.8,3.021]
[1755811013739,4.189,4251.4,4250.4,5.35271974]
[1755811013939,4.189,4251.4,4250.6,2.35256612]
[1755811014155,4.189,4251.4,4250.7,2.35255074]
[1755811014355,4.189,4251.4,4250.2,0.4702]
[1755811014356,1.81,4251.5,4250.6,0.49372609]
[1755811014556,4.189,4251.3,4250.9,2.35240252]
[1755811014855,4.189,4251.3,4250.6,3.0]
[1755811015033,4.189,4251.3,4250.3,0.4702]
[1755811015034,4.189,4251.3,4250.7,2.3525476]
[1755811015238,4.189,4251.3,4250.9,2.35240135]
[1755811015635,4.189,4251.3,4251.0,2.35234368]
[1755811015822,1.81,4251.5,4250.9,2.82262559]
[1755811016019,4.187,4251.4,4250.9,0.4702]
[1755811016219,1.81,4251.5,4251.0,3.4702]
[1755811016420,4.185,4251.4,4251.0,0.4702]
[1755811016649,4.185,4251.4,4251.1,2.35232639]
[1755811016846,4.185,4251.4,4250.3,2.35277509]
[1755811017057,0.2867,4251.2,4250.4,2.3526806]
[1755811017260,0.2867,4251.2,4250.6,0.707452]
[1755811017553,0.2867,4251.2,4250.1,2.35287845]
[1755811017756,0.2867,4251.2,4250.1,2.35288581]
[1755811017941,1.02028,4251.2,4250.2,2.35280617]
[1755811018144,0.4546,4251.1,4250.1,2.35287046]
[1755811018371,4.183,4251.0,4250.5,0.001]
[1755811019053,0.4546,4251.1,4250.5,0.001]
[1755811019054,0.4546,4250.9,4250.5,0.001]
[1755811019236,0.2867,4250.6,4250.5,0.001]
[1755811020352,0.7413,4250.6,4250.5,0.001]
[1755811020558,1.41463,4250.6,4250.5,0.001]
[1755811021524,0.96003,4250.6,4250.5,0.001]
[1755811021940,1.81,4250.7,4250.5,0.288]
[1755811022160,4.178,4250.6,4250.5,0.288]
[1755811022550,4.178,4250.6,4250.5,5.64066439]
[1755811023141,4.178,4250.6,4250.5,3.288]
[1755811023652,4.178,4250.6,4250.5,3.001]
[1755811024455,4.178,4250.6,4250.5,5.64066439]
[1755811024767,4.178,4250.6,4250.5,3.001]
[1755811025556,5.0635,4250.6,4250.5,3.001]
[1755811025883,6.1781,4250.6,4250.5,0.001]
[1755811026566,0.66,4250.5,4250.0,0.001]
[1755811026745,18.07137169,4250.1,4250.0,0.001]
[1755811026945,27.91437169,4250.1,4250.0,0.001]
[1755811027149,30.27651132,4250.1,4250.0,0.001]
[1755811027353,1.81,4250.1,4250.0,0.001]
[1755811027554,1.81,4250.1,4250.0,0.288]
[1755811027872,4.191,4250.2,4250.0,0.001]
[1755811028078,4.191,4250.1,4250.0,0.001]
[1755811029049,4.193,4250.1,4250.0,5.66942944]
[1755811029248,1.81,4250.7,4250.1,3.0]
[1755811029476,1.81,4250.7,4250.0,3.7915]
[1755811029477,4.19,4250.6,4250.2,2.35283045]
[1755811029773,4.19,4250.6,4250.5,0.3155]
[1755811032060,4.19,4250.6,4250.1,3.0]
[1755811032469,4.19,4250.6,4250.0,5.35393204]
[1755811032777,4.19,4250.6,4250.0,0.001]
[1755811032778,0.2956,4250.1,4250.0,0.001]
[1755811032975,4.4806,4250.1,4250.0,0.001]
[1755811033185,5.5907,4250.1,4250.0,0.001]
[1755811037082,1.4057,4250.1,4250.0,0.001]
[1755811037298,7.09371086,4250.1,4250.0,0.001]
[1755811038292,2.90671086,4250.1,4250.0,0.001]
[1755811038502,5.97961086,4250.1,4250.0,0.001]
[1755811038671,4.4786,4250.1,4250.0,0.001]
[1755811039868,4.4756,4250.1,4250.0,0.001]
[1755811040301,0.2956,4250.1,4250.0,0.001]
[1755811040468,4.18,4250.1,4250.0,0.001]
[1755811040864,0.602,4250.6,4250.0,0.001]
[1755811040865,0.602,4250.6,4250.0,0.3165]
[1755811041165,4.18,4250.5,4250.0,0.3165]
[1755811041566,4.18,4250.5,4250.0,0.001]
[1755811042379,0.9556,4250.1,4250.0,0.001]
[1755811042696,5.1366,4250.1,4250.0,0.001]
[1755811042871,5.5867,4250.1,4250.0,0.001]
[1755811043077,6.14537,4250.1,4250.0,0.001]
[1755811044516,6.36511676,4250.1,4250.0,0.001]
[1755811048306,0.66,4250.0,4249.6,0.001]
[1755811048482,42.81934676,4249.9,4249.6,0.001]
[1755811048681,45.63158639,4249.9,4249.6,0.001]
[1755811049207,56.75508149,4249.9,4249.6,0.001]
[1755811050475,56.88694188,4249.9,4249.6,0.001]
[1755811051774,59.88694188,4249.9,4249.6,0.001]
[1755811052217,3.66,4249.8,4249.6,0.001]
[1755811052385,21.94625993,4249.7,4249.6,0.001]
[1755811052582,0.66,4249.6,4249.3,0.001]
[1755811052808,31.8136134,4249.6,4249.3,0.001]
[1755811053106,32.2637134,4249.6,4249.3,0.001]
[1755811053305,32.2637134,4249.6,4247.8,0.02]
[1755811053519,0.66,4249.4,4247.8,0.02]
[1755811053722,0.9556,4249.2,4247.8,0.02]
[1755811053881,31.17529894,4249.2,4247.8,0.02]
[1755811054080,32.13157465,4249.2,4247.8,0.02]
[1755811055405,34.50375832,4249.2,4248.4,0.475]
[1755811055615,5.72242832,4249.2,4248.4,0.475]
[1755811055787,6.01802832,4249.2,4248.4,0.475]
[1755811055991,5.72242832,4249.2,4248.4,0.475]
[1755811056506,6.46712832,4249.2,4247.8,0.02]
[1755811056805,0.66,4248.4,4247.8,0.02]
[1755811057015,0.9556,4247.9,4247.8,0.02]
[1755811057230,10.7816,4247.9,4247.8,0.02]
[1755811057543,10.7816,4247.9,4247.8,0.8105]
[1755811057544,5.661,4247.9,4247.8,0.8105]
[1755811057830,4.167,4247.9,4247.8,0.8105]
[1755811057992,4.5837,4247.9,4247.8,0.3355]
[1755811058188,4.5837,4247.9,4247.8,0.02]
[1755811058402,5.2437,4247.9,4247.8,0.02]
[1755811058614,5.2467,4247.9,4247.8,0.02]
[1755811059000,0.66,4247.8,4246.1,0.4297]
[1755811059201,0.66,4247.0,4246.0,0.4297]
[1755811059401,6.641,4246.9,4246.0,0.4297]
[1755811059620,6.641,4246.9,4245.0,0.4297]
[1755811059621,6.641,4246.9,4246.4,0.4297]
[1755811059829,6.641,4246.9,4246.8,0.3242]
[1755811060431,6.641,4246.9,4246.8,0.02]
[1755811062471,6.9457,4246.9,4246.8,0.02]
[1755811062615,0.66,4246.8,4245.8,0.02]
[1755811062809,0.66,4246.6,4245.8,0.02]
[1755811063015,0.66,4246.4,4245.8,0.02]
[1755811063215,0.66,4246.2,4245.8,0.02]
[1755811063519,0.66,4246.0,4245.8,0.02]
[1755811063823,6.4717,4246.1,4245.8,0.02]
[1755811063824,4.837,4245.9,4245.8,0.02]
[1755811064012,4.836,4245.9,4245.8,0.02]
[1755811064212,5.1407,4245.9,4245.8,0.02]
[1755811064413,0.66,4245.9,4245.8,0.02]
[1755811064641,5.17307,4245.9,4245.8,0.02]
[1755811064848,5.47777,4245.9,4245.8,0.02]
[1755811065345,5.17307,4245.9,4245.8,0.02]
[1755811067050,5.47777,4245.9,4245.8,0.02]
[1755811067251,5.17307,4245.9,4245.8,0.02]
[1755811067854,5.47777,4245.9,4245.8,0.02]
[1755811068058,5.91377,4245.9,4245.8,0.02]
[1755811068370,30.66,4245.8,4244.8,0.02]
[1755811068524,30.66,4245.8,4245.3,0.001]
[1755811068525,0.66,4245.7,4245.3,0.001]
[1755811068724,0.66,4245.5,4245.3,0.001]
[1755811068928,0.820847,4245.8,4245.3,0.001]
[1755811068929,4.838,4245.4,4245.3,0.4307]
[1755811069121,0.66,4245.4,4245.3,0.3052]
[1755811069358,0.820847,4245.8,4245.3,0.3052]
[1755811069559,0.820847,4245.8,4245.4,0.4297]
[1755811069560,4.178,4245.7,4245.4,0.4297]
[1755811069870,4.97264281,4245.7,4245.3,0.001]
[1755811070073,0.79464281,4245.7,4245.6,0.3042]
[1755811070225,4.177,4245.7,4245.6,0.3042]
[1755811070425,4.177,4245.7,4245.6,0.7339]
[1755811070654,0.66,4245.8,4245.6,0.7339]
[1755811070856,4.177,4245.7,4245.6,0.3042]
[1755811071026,4.177,4245.7,4245.3,0.001]
[1755811071226,4.626607,4245.6,4245.3,0.001]
[1755811071626,0.66,4245.5,4245.3,0.001]
[1755811071855,0.66,4245.4,4245.3,0.001]
[1755811072055,4.835,4245.4,4245.3,0.3052]
[1755811072262,4.835,4245.4,4245.3,0.7349]
[1755811072447,1.0950607,4245.4,4245.3,0.3052]
[1755811072651,4.174,4245.4,4245.3,0.7349]
[1755811073950,4.172,4245.4,4245.3,0.7349]